bitfinex/quotes_ETHUSD_20241108
["timestamp","ask_amount","ask_price","bid_price","bid_amount"]
[1731095259452,0.00616531,2978.0,2977.9,41.0433373]
[1731095259755,0.005,2978.5,2978.4,9.3522]
[1731095259981,1.71426121,2981.0,2978.4,9.3522]
[1731095259982,0.7635,2980.9,2979.2,3.554]
[1731095260292,0.7635,2980.7,2979.5,4.37919541]
[1731095260494,0.7635,2980.5,2979.3,1.34795081]
[1731095260856,0.7635,2980.5,2979.5,4.37919541]
[1731095261284,0.7635,2980.5,2979.5,7.93319541]
[1731095261609,0.7635,2980.5,2979.5,4.37919541]
[1731095261953,0.7635,2980.5,2979.9,4.37919541]
[1731095262157,0.7635,2980.5,2979.9,5.72714622]
[1731095262654,0.7635,2980.5,2979.9,1.34795081]
[1731095262868,0.7635,2980.5,2979.5,4.37919541]
[1731095263290,0.7635,2980.5,2979.6,0.0669455]
[1731095263494,0.7635,2980.5,2979.5,7.93319541]
[1731095263706,0.7635,2980.5,2979.5,4.37919541]
[1731095266212,0.7685,2980.5,2979.5,4.37919541]
[1731095266778,0.7685,2980.5,2979.6,0.06693906]
[1731095266979,0.7685,2980.5,2979.5,4.37919541]
[1731095267304,0.7685,2980.5,2979.9,3.88348809]
[1731095267475,0.7685,2980.5,2979.9,5.22148809]
[1731095268280,0.4685,2980.5,2980.4,3.88348809]
[1731095269194,0.4685,2980.5,2979.9,1.338]
[1731095269195,0.4685,2980.5,2980.0,3.88348809]
[1731095271825,0.4685,2980.5,2979.2,0.4004866]
[1731095271826,0.86027806,2980.4,2979.2,3.88348809]
[1731095272129,0.7764,2980.2,2979.0,3.88348809]
[1731095272327,0.7764,2980.0,2979.0,3.88348809]
[1731095272630,0.7764,2979.8,2979.0,4.30897469]
[1731095272819,0.7764,2979.8,2979.1,0.06700512]
[1731095272985,0.7764,2979.8,2979.0,4.30897469]
[1731095273629,0.7764,2979.8,2978.7,1.34]
[1731095273630,0.7764,2979.8,2979.4,3.88348809]
[1731095274891,0.7764,2979.8,2979.0,3.88348809]
[1731095275320,0.08390451,2979.7,2979.0,3.88348809]
[1731095275505,0.8032,2979.6,2979.1,3.88348809]
[1731095276097,0.8032,2979.6,2979.2,0.06700831]
[1731095276299,0.8032,2979.6,2979.3,0.4254866]
[1731095276487,0.8032,2979.6,2978.5,0.8139]
[1731095276488,0.8032,2979.6,2978.9,3.88348809]
[1731095276699,0.8032,2979.6,2978.1,0.3764866]
[1731095276896,0.819,2979.4,2978.5,3.88348809]
[1731095277130,0.01,2979.8,2978.5,3.88348809]
[1731095277131,0.819,2979.2,2978.5,3.88348809]
[1731095277496,0.89332029,2979.1,2978.5,3.88348809]
[1731095277692,0.8094,2978.9,2978.6,0.06706787]
[1731095278009,0.8094,2978.9,2978.5,3.88348809]
[1731095278192,0.8094,2978.9,2977.8,0.72603315]
[1731095278393,0.8094,2978.9,2978.2,3.88348809]
[1731095279538,0.63393041,2978.8,2977.8,0.34954655]
[1731095279836,0.7716,2978.7,2977.6,5.22548809]
[1731095280141,0.63393041,2978.8,2977.6,5.60197469]
[1731095280142,0.7716,2978.5,2977.6,5.60197469]
[1731095280320,0.7716,2978.5,2977.6,4.25997469]
[1731095280503,0.7585,2978.3,2977.6,4.25997469]
[1731095281916,0.7585,2978.3,2977.6,3.88348809]
[1731095282115,0.7591,2978.1,2977.5,0.34854996]
[1731095282350,0.7591,2977.9,2976.9,4.25997469]
[1731095282496,0.55,2978.2,2976.9,4.25997469]
[1731095282497,0.753,2977.7,2976.9,4.25997469]
[1731095282917,0.753,2977.7,2977.0,0.06714212]
[1731095283109,0.753,2977.7,2977.3,3.88348809]
[1731095283320,0.753,2977.7,2977.4,0.06712742]
[1731095283523,0.10914825,2978.9,2977.5,0.3764866]
[1731095283524,0.7551,2978.8,2977.5,0.3764866]
[1731095283738,0.7551,2978.8,2978.2,3.88348809]
[1731095284397,0.7551,2978.8,2978.3,0.06706264]
[1731095284605,0.7551,2978.8,2978.6,3.88348809]
[1731095284910,0.7551,2979.6,2978.6,3.88348809]
[1731095285128,0.7551,2979.6,2979.0,3.88348809]
[1731095285372,0.7551,2979.6,2979.1,0.06700778]
[1731095285839,0.7551,2979.6,2979.0,3.88348809]
[1731095286343,0.7551,2979.6,2978.6,0.3764866]
[1731095286344,0.7551,2979.6,2978.6,4.25997469]
[1731095286713,0.7551,2979.6,2978.2,1.344]
[1731095286714,0.08391096,2979.5,2978.2,5.60397469]
[1731095286911,0.7766,2979.4,2978.6,3.88348809]
[1731095287118,0.7766,2979.4,2978.7,0.06703304]
[1731095287435,0.7766,2979.4,2978.6,4.25997469]
[1731095287643,0.7766,2979.4,2978.6,3.88348809]
[1731095287803,0.7766,2979.4,2978.7,0.06703306]
[1731095288504,0.7766,2979.4,2978.6,3.88348809]
[1731095288945,0.7766,2979.4,2978.7,0.06703305]
[1731095289180,0.7766,2979.4,2978.6,3.88348809]
[1731095289530,0.7766,2979.4,2978.4,0.3764866]
[1731095289735,0.7505,2979.2,2978.2,3.88348809]
[1731095289931,0.7505,2979.0,2978.2,3.88348809]
[1731095290341,0.7505,2979.0,2978.3,0.06705807]
[1731095290641,0.7505,2978.9,2978.2,3.88348809]
[1731095290843,0.7505,2979.0,2978.2,3.88348809]
[1731095291651,0.7505,2979.0,2978.3,0.06705338]
[1731095291873,0.7505,2979.0,2978.3,0.44353998]
[1731095292298,0.7505,2979.0,2978.2,3.88348809]
[1731095292733,0.7505,2978.8,2978.3,0.06705108]
[1731095292932,0.7505,2978.8,2978.0,3.88348809]
[1731095293231,0.08392961,2978.7,2977.6,3.88348809]
[1731095293465,0.7505,2978.6,2977.6,3.88348809]
[1731095293629,0.7505,2978.6,2977.7,0.06709132]
[1731095294233,0.7505,2978.6,2977.6,3.88348809]
[1731095294447,0.7505,2978.6,2977.7,0.06709129]
[1731095294971,0.7505,2978.6,2978.0,3.88348809]
[1731095295157,0.7505,2978.6,2978.1,0.06707389]
[1731095295357,0.7505,2978.6,2978.0,3.88348809]
[1731095296077,0.7505,2978.6,2977.6,3.88348809]
[1731095296260,0.7505,2978.6,2977.4,0.3764866]
[1731095296461,0.8203,2978.3,2976.9,0.3764866]
[1731095296664,0.55,2978.4,2976.9,0.3764866]
[1731095296665,0.8203,2978.1,2976.9,3.88348809]
[1731095296870,0.55,2978.4,2976.9,3.88348809]
[1731095296871,0.8203,2977.9,2977.0,0.06713192]
[1731095297044,0.8203,2977.9,2977.3,3.88348809]
[1731095297366,0.8203,2977.9,2977.4,0.06713175]
[1731095297866,0.8203,2977.9,2977.3,3.88348809]
[1731095298039,0.8203,2977.9,2977.0,0.3764866]
[1731095298245,0.8203,2977.9,2977.3,3.88348809]
[1731095298447,0.8203,2977.9,2977.4,0.06712386]
[1731095298771,0.8203,2977.9,2977.7,3.88348809]
[1731095299184,0.7574,2978.6,2977.8,0.06711869]
[1731095299349,0.01,2979.0,2977.7,3.88348809]
[1731095299350,0.8279,2978.4,2977.7,3.88348809]
[1731095299548,0.0839425,2978.3,2977.7,3.88348809]
[1731095299792,0.8279,2978.3,2976.9,3.88348809]
[1731095300091,0.91185801,2978.2,2976.9,3.88348809]
[1731095300592,0.55,2978.1,2976.9,3.88348809]
[1731095300789,0.7872,2977.8,2976.9,3.88348809]
[1731095301092,1.3372,2977.5,2975.8,1.15293924]
[1731095301312,0.08397433,2977.4,2976.2,0.3764866]
[1731095301591,0.7872,2977.5,2976.3,0.06717838]
[1731095301771,0.7872,2977.5,2976.4,0.3764866]
[1731095301976,0.7872,2977.5,2976.5,0.06715409]
[1731095302196,0.7872,2977.5,2976.6,0.3764866]
[1731095302489,0.7872,2977.5,2976.3,0.3764866]
[1731095303147,0.7717,2977.3,2975.5,0.35315326]
[1731095303344,0.7817,2977.1,2975.5,0.35315326]
[1731095303549,0.56,2977.4,2975.5,0.35315326]
[1731095303550,0.8059,2976.8,2975.5,0.35315326]
[1731095303789,0.8059,2976.6,2975.5,0.35315326]
[1731095303994,0.8059,2976.6,2975.6,0.06719304]
[1731095304176,0.8059,2976.6,2975.7,0.42034745]
[1731095304892,0.8059,2976.6,2975.8,0.06718824]
[1731095305746,0.8059,2976.6,2975.7,0.35315326]
[1731095305946,0.8059,2976.6,2975.1,1.358]
[1731095306193,0.8059,2976.6,2975.2,0.35315326]
[1731095306559,0.8059,2976.6,2975.3,0.06719052]
[1731095306868,0.7753,2976.4,2975.3,0.06719052]
[1731095307683,0.7753,2976.4,2975.1,1.348]
[1731095307684,0.7753,2976.4,2975.4,0.06720281]
[1731095308686,0.7753,2976.4,2975.2,0.06720282]
[1731095308884,0.55,2976.5,2975.2,0.06720282]
[1731095308885,0.7753,2976.2,2975.2,0.06720282]
[1731095309271,0.7753,2976.0,2974.0,0.7652]
[1731095309472,0.7753,2975.8,2974.1,0.06721794]
[1731095309734,0.85932243,2975.7,2974.1,0.41569592]
[1731095310068,0.7753,2975.5,2973.8,1.35]
[1731095310314,0.7753,2975.3,2973.8,1.3055875]
[1731095310516,0.7753,2974.9,2973.9,0.06723383]
[1731095310668,0.7753,2974.7,2973.4,0.06724055]
[1731095311129,1.5405,2974.7,2973.4,0.06724055]
[1731095311272,1.5405,2974.7,2973.4,0.41571853]
[1731095311473,1.5405,2974.7,2973.5,0.39981131]
[1731095311675,1.5405,2974.7,2973.6,0.06724056]
[1731095311910,1.5405,2974.7,2973.2,2.0732]
[1731095311911,0.7753,2974.7,2973.7,0.39981131]
[1731095312223,0.7753,2974.7,2973.8,0.06723216]
[1731095312622,0.7753,2974.7,2973.8,0.39981131]
[1731095312779,0.7753,2974.6,2973.9,0.06723961]
[1731095313203,0.7753,2974.6,2973.2,2.0732]
[1731095313204,0.55,2974.4,2973.5,0.39981131]
[1731095313414,0.8038,2974.2,2972.9,0.39981131]
[1731095313674,0.8038,2974.2,2973.0,0.06724847]
[1731095313888,0.8038,2974.2,2973.1,0.39981131]
[1731095314109,0.8038,2974.2,2973.2,0.0672447]
[1731095314274,0.8038,2974.2,2973.2,0.46705601]
[1731095314480,0.8038,2974.2,2973.3,0.39981131]
[1731095314821,0.8038,2974.2,2973.4,0.0672446]
[1731095315814,0.8038,2974.2,2972.9,0.44930984]
[1731095316723,0.8038,2974.2,2972.9,0.45930596]
[1731095317216,0.8038,2974.2,2972.9,0.38206131]
[1731095317419,1.34393,2974.7,2972.6,1.308]
[1731095317420,0.7893,2974.0,2972.6,1.308]
[1731095317577,0.55,2973.7,2972.6,1.308]
[1731095317777,0.87337679,2973.6,2972.6,1.308]
[1731095317985,0.87337679,2973.6,2972.1,0.38206131]
[1731095318180,0.55,2973.3,2971.8,2.1128]
[1731095318424,0.55,2973.1,2971.9,0.06727318]
[1731095318622,0.7647,2973.2,2971.9,0.44933449]
[1731095318981,0.7647,2973.2,2972.1,0.01]
[1731095319220,0.7647,2973.2,2972.1,0.35789464]
[1731095319421,0.7647,2973.2,2972.1,0.36789464]
[1731095319915,0.7647,2973.2,2971.8,2.47069464]
[1731095320094,0.7647,2973.2,2971.8,2.48069464]
[1731095320849,0.7647,2973.0,2971.8,1.31]
[1731095321199,0.7747,2972.8,2970.7,0.05846309]
[1731095321437,0.7647,2972.4,2970.8,0.06729982]
[1731095321594,0.7647,2972.2,2970.8,0.06729982]
[1731095322140,0.7647,2972.4,2970.7,1.312]
[1731095322443,0.01,2972.6,2970.3,0.8028]
[1731095322444,0.7647,2971.8,2970.3,0.8028]
[1731095322642,0.7647,2971.8,2970.1,1.324]
[1731095323249,0.7647,2971.8,2970.2,0.06730264]
[1731095323453,0.7647,2971.8,2970.3,0.01]
[1731095324140,0.55,2971.7,2970.3,0.06729949]
[1731095324363,0.8047,2971.6,2970.3,0.06729949]
[1731095324685,0.8047,2971.6,2970.9,3.0]
[1731095324893,0.8047,2971.6,2970.1,1.324]
[1731095325380,0.8051,2971.4,2970.1,1.314]
[1731095325685,0.8051,2971.4,2970.2,0.06730967]
[1731095326505,0.8201,2973.0,2970.6,0.8101]
[1731095326642,0.01,2973.2,2970.6,0.8101]
[1731095326643,0.7952,2972.8,2970.9,3.01]
[1731095327000,0.7952,2972.8,2971.5,0.01]
[1731095327142,0.7952,2972.8,2971.6,1.314]
[1731095327584,0.7952,2972.8,2971.7,0.06727458]
[1731095327782,0.7952,2972.8,2971.8,0.06727096]
[1731095328402,0.0840887,2974.0,2972.0,0.8188]
[1731095328403,0.7952,2973.9,2972.0,0.8188]
[1731095328608,0.7952,2973.7,2972.0,0.8188]
[1731095328910,0.7952,2973.5,2972.1,0.06726233]
[1731095329063,0.7952,2973.5,2972.0,0.8188]
[1731095329755,0.7452,2973.5,2972.0,0.8188]
[1731095330226,0.7452,2973.5,2971.6,1.314]
[1731095330227,0.7452,2973.5,2971.6,2.1431]
[1731095330359,0.7452,2973.5,2972.1,0.06726656]
[1731095330578,0.7452,2973.5,2972.3,0.8291]
[1731095330793,0.7452,2973.5,2972.4,0.06725809]
[1731095331095,0.7452,2973.5,2972.9,3.0]
[1731095331291,0.7452,2973.5,2972.1,8.564]
[1731095331292,0.01,2975.8,2973.0,0.06725388]
[1731095331519,0.01,2975.2,2973.1,0.8205]
[1731095331826,0.08405241,2975.1,2972.8,4.314]
[1731095331992,0.08405241,2975.1,2972.9,0.07724193]
[1731095332320,0.08405241,2975.1,2972.9,0.06724193]
[1731095332911,0.7801,2975.0,2972.9,0.06724193]
[1731095333104,1.34393,2975.2,2972.8,4.314]
[1731095333105,0.86414847,2974.9,2972.8,4.314]
[1731095333283,0.86414847,2974.9,2972.9,0.06724167]
[1731095334103,0.86414847,2974.9,2973.0,3.0]
[1731095334304,0.86414847,2974.9,2973.1,0.06724167]
[1731095334880,0.86414847,2974.9,2972.8,4.314]
[1731095335396,0.8153,2974.6,2972.8,1.314]
[1731095335613,0.8153,2974.4,2972.8,1.314]
[1731095335823,1.3653,2974.2,2971.9,0.7847]
[1731095336119,1.3265,2973.9,2972.0,1.31]
[1731095336322,0.7765,2973.7,2972.0,1.31]
[1731095336521,0.7765,2973.5,2972.0,1.31]
[1731095336724,0.7765,2973.3,2972.0,1.31]
[1731095336877,0.7765,2973.1,2972.0,1.31]
[1731095337519,0.7765,2973.1,2972.1,0.06727358]
[1731095337919,0.7765,2973.1,2972.1,3.06727358]
[1731095338079,0.7765,2973.1,2972.0,1.31]
[1731095339120,0.7765,2973.1,2972.1,0.06727294]
[1731095340384,0.7765,2973.1,2972.0,1.31]
[1731095341586,0.7765,2973.1,2971.5,0.7847]
[1731095341786,0.7765,2973.1,2971.4,1.312]
[1731095341986,0.85220277,2973.0,2971.4,1.312]
[1731095342196,0.7681,2972.8,2970.5,0.33089464]
[1731095342441,0.7834,2972.6,2970.6,1.312]
[1731095342594,0.7834,2972.4,2970.7,0.34089464]
[1731095342795,0.7834,2972.4,2970.8,0.06729169]
[1731095343030,0.7834,2972.4,2970.8,0.39818633]
[1731095343335,0.7834,2972.4,2970.8,0.33089464]
[1731095344192,0.7834,2972.4,2971.0,3.0]
[1731095344393,0.7834,2972.4,2971.3,6.532]
[1731095344593,0.7834,2972.4,2971.2,0.55]
[1731095344594,0.7834,2972.4,2971.6,0.7905]
[1731095344826,0.8286,2974.0,2971.7,0.06727737]
[1731095345144,0.8286,2973.8,2971.7,0.06727737]
[1731095345291,0.90328588,2973.7,2971.7,0.06727737]
[1731095345498,0.8192,2973.7,2971.8,7.082]
[1731095345702,0.8192,2973.7,2971.8,7.41289464]
[1731095345906,0.8192,2973.7,2972.0,0.01]
[1731095346152,0.8192,2973.7,2971.9,0.06725898]
[1731095346153,0.8192,2973.7,2972.5,0.01]
[1731095346458,0.8192,2973.7,2972.6,3.0]
[1731095346605,0.8192,2973.7,2972.7,1.312]
[1731095347913,0.8192,2973.7,2972.8,0.06724959]
[1731095348119,0.8192,2973.7,2972.9,3.7518]
[1731095348853,0.08405904,2975.1,2973.0,0.06724723]
[1731095349621,0.08405904,2975.1,2973.1,0.01]
[1731095349842,0.01,2975.7,2973.1,0.01]
[1731095349843,0.10404249,2975.7,2973.2,0.06723399]
[1731095350063,1.34393,2975.3,2973.1,0.01]
[1731095350355,0.08403913,2975.2,2972.9,3.7518]
[1731095350560,0.08403913,2975.2,2972.7,1.312]
[1731095350936,0.55,2975.1,2972.7,1.312]
[1731095351136,0.08405437,2975.0,2972.7,1.312]
[1731095351644,0.55,2974.9,2972.8,0.06724711]
[1731095351832,0.55,2974.7,2972.7,1.312]
[1731095352030,0.5871,2974.5,2972.2,0.8113]
[1731095352245,0.5871,2974.3,2972.1,1.31]
[1731095352551,0.67117366,2974.2,2972.1,1.31]
[1731095352723,0.5871,2974.0,2972.1,1.31]
[1731095352920,0.5871,2973.8,2972.1,1.31]
[1731095353198,0.5871,2973.6,2971.7,0.01]
[1731095353358,0.5871,2973.6,2972.2,0.06726591]
[1731095353562,0.67118095,2973.5,2971.6,1.64089464]
[1731095354239,0.67118095,2973.5,2971.6,1.31]
[1731095356174,0.5871,2973.3,2970.9,0.33089464]
[1731095356326,0.5871,2973.1,2971.0,1.312]
[1731095356522,0.5871,2972.9,2971.0,1.312]
[1731095356762,0.5871,2972.7,2971.0,1.64289464]
[1731095356970,0.67120932,2972.6,2971.0,1.312]
[1731095357278,0.5871,2972.4,2971.1,0.06728965]
[1731095357433,0.01,2972.9,2970.2,0.40819153]
[1731095357434,0.5871,2972.2,2970.2,0.40819153]
[1731095357775,0.5871,2972.2,2970.3,1.314]
[1731095357942,0.5871,2972.2,2970.4,0.06729689]
[1731095358126,0.5871,2972.2,2970.6,0.01]
[1731095358331,0.5871,2972.2,2970.7,5.4081827]
[1731095358569,0.5871,2972.2,2970.9,0.55]
[1731095358779,0.5871,2972.2,2971.1,0.55]
[1731095358936,0.5871,2972.2,2971.2,0.06728453]
[1731095359462,0.5871,2972.2,2971.1,0.55]
[1731095359785,0.5871,2972.2,2971.2,0.06728586]
[1731095360275,0.5871,2972.2,2970.3,3.0]
[1731095360568,0.5871,2972.2,2970.4,1.64489464]
[1731095360772,0.5871,2972.2,2970.4,1.324]
[1731095360931,0.5871,2972.2,2970.7,5.01]
[1731095361138,0.5871,2972.2,2970.8,3.06729019]
[1731095361332,0.5871,2972.2,2970.9,0.55]
[1731095362649,0.5871,2972.2,2970.9,4.092]
[1731095362849,0.5871,2972.2,2971.1,0.55]
[1731095363195,0.5871,2972.2,2971.1,3.55]
[1731095363336,0.5871,2972.2,2971.1,7.082]
[1731095363532,0.5871,2972.2,2971.1,3.55]
[1731095363732,0.5871,2972.2,2971.1,0.55]
[1731095364513,0.08410247,2973.2,2971.2,0.85258689]
[1731095364687,0.08410861,2974.0,2971.3,9.082]
[1731095364982,0.5871,2973.8,2971.5,0.55]
[1731095365135,0.08408625,2973.7,2971.6,1.314]
[1731095366086,0.09408625,2973.7,2971.6,1.314]
[1731095366373,0.55,2973.6,2971.6,1.314]
[1731095366537,0.55,2973.6,2970.9,3.8137]
[1731095366538,0.0840993,2973.5,2971.0,0.55]
[1731095367535,0.55,2973.2,2971.0,1.312]
[1731095367734,0.08411287,2973.1,2971.0,1.312]
[1731095368720,0.01,2972.9,2970.3,3.8774]
[1731095368881,0.08411883,2972.9,2970.4,1.314]
[1731095369283,0.08411912,2973.4,2971.3,0.8262]
[1731095369482,0.0840936,2973.7,2971.4,5.4426894]
[1731095369728,0.0840936,2973.7,2971.4,5.4526894]
[1731095370032,0.0840936,2973.7,2971.4,5.38541452]
[1731095370195,0.0840936,2973.7,2971.6,3.532]
[1731095370382,0.0840936,2973.7,2971.9,3.532]
[1731095370582,0.0840936,2973.7,2972.0,3.0672696]
[1731095370984,0.0840936,2973.7,2972.0,3.57376746]
[1731095371418,0.0840936,2973.7,2972.0,3.0672696]
[1731095371621,0.0840936,2973.7,2972.1,0.50649786]
[1731095371921,0.5871,2973.8,2972.1,0.50649786]
[1731095371922,0.08408663,2974.3,2972.4,6.532]
[1731095372141,0.08408663,2974.3,2972.5,0.06725936]
[1731095372142,0.5971,2974.2,2972.5,0.06725936]
[1731095372344,0.08407421,2974.1,2972.4,3.532]
[1731095373215,0.08407421,2974.1,2972.5,3.0672594]
[1731095373606,0.08407421,2974.1,2972.5,6.532]
[1731095373802,0.08407031,2974.4,2972.5,6.59925625]
[1731095374001,0.5871,2974.4,2973.1,3.532]
[1731095374217,0.08406381,2974.6,2972.9,1.314]
[1731095374443,0.01,2975.1,2972.6,0.47483119]
[1731095374444,0.699431,2974.8,2972.6,0.47483119]
[1731095374633,0.0840634,2974.7,2972.6,0.47483119]
[1731095374941,0.0840634,2974.7,2972.2,4.31]
[1731095375146,0.0840634,2974.7,2972.3,0.47483119]
[1731095375330,0.78349502,2974.7,2972.3,0.47483119]
[1731095375531,0.55,2974.6,2972.3,0.47483119]
[1731095375704,0.55,2974.4,2972.3,0.47483119]
[1731095375904,0.08407632,2974.3,2972.3,0.47483119]
[1731095376543,0.56,2974.2,2972.4,0.06726107]
[1731095376747,0.08408727,2974.1,2972.5,0.06726981]
[1731095376928,0.55,2974.4,2972.3,0.47483119]
[1731095377128,0.55,2974.2,2972.2,1.31]
[1731095377343,0.55,2974.0,2972.2,1.31]
[1731095377548,0.02,2973.5,2971.2,0.32266272]
[1731095377706,0.56,2973.3,2971.3,0.06728943]
[1731095378042,0.08411144,2973.2,2971.0,0.44441702]
[1731095378748,0.08411144,2973.2,2971.1,0.06728916]
[1731095378915,0.08411144,2973.2,2971.2,0.44441702]
[1731095380168,0.08411144,2973.2,2971.3,0.06728876]
[1731095380526,0.08411144,2973.2,2970.9,1.312]
[1731095380527,0.09411144,2973.2,2970.9,1.312]
[1731095380728,0.55,2973.1,2970.9,1.312]
[1731095381024,0.08411495,2973.0,2970.9,1.75641702]
[1731095381225,0.08411495,2973.0,2971.0,0.06729197]
[1731095381453,0.08411495,2973.0,2971.0,0.51170899]
[1731095381821,0.01,2972.3,2971.0,0.44441702]
[1731095382021,0.01,2972.3,2969.4,0.01]
[1731095382022,0.56,2972.1,2969.4,0.01]
[1731095382249,0.56,2971.9,2969.2,0.8134]
[1731095382529,0.01,2971.5,2968.7,0.7978]
[1731095382873,0.01,2971.5,2968.1,0.01]
[1731095382874,0.01,2971.1,2968.1,0.01]
[1731095383173,0.01,2970.9,2968.1,0.07734432]
[1731095383362,0.01,2970.9,2967.9,0.35113579]
[1731095383363,0.01,2970.5,2967.7,0.01]
[1731095383535,0.0841918,2970.5,2968.4,3.532]
[1731095383734,0.01,2970.9,2968.3,0.7978]
[1731095384055,0.55,2970.8,2968.3,0.7978]
[1731095384261,0.08418074,2970.7,2968.4,0.06734491]
[1731095384477,0.08418074,2970.7,2968.3,0.7978]
[1731095384833,0.08418074,2970.7,2968.4,0.06734478]
[1731095385048,0.08418074,2970.7,2968.4,5.06734478]
[1731095385259,0.55,2971.3,2968.7,0.01]
[1731095385578,0.08416389,2971.2,2969.3,1.09950188]
[1731095385734,0.01,2971.8,2969.3,0.32530188]
[1731095385932,0.01,2971.8,2968.8,0.01]
[1731095385933,0.09416177,2971.8,2969.0,0.33963521]
[1731095386140,0.09416177,2971.8,2969.1,0.01]
[1731095386437,0.09416177,2971.8,2969.0,0.34963521]
[1731095386638,0.55,2971.7,2969.0,0.34963521]
[1731095386858,0.55,2971.5,2969.1,0.01]
[1731095387045,0.08416175,2971.4,2969.1,0.01]
[1731095387444,0.08416175,2971.4,2969.5,0.36596855]
[1731095388156,0.55,2971.3,2969.5,0.36596855]
[1731095388333,0.08416939,2971.2,2969.5,0.36596855]
[1731095388538,0.08416939,2971.2,2968.7,0.7742]
[1731095388735,0.08416939,2971.2,2969.1,0.36596855]
[1731095389349,0.02,2971.4,2969.1,0.36596855]
[1731095389553,0.55,2971.2,2969.1,0.36596855]
[1731095389900,0.08416881,2971.1,2969.1,0.36596855]
[1731095390537,0.56,2971.7,2969.1,0.36596855]
[1731095390736,0.55,2971.5,2969.1,0.36596855]
[1731095391048,0.08416002,2971.4,2969.1,0.36596855]
[1731095392576,0.55,2971.3,2969.1,0.36596855]
[1731095392781,0.08416001,2971.2,2969.1,0.36596855]
[1731095393077,0.08416001,2971.2,2969.6,0.43097688]
[1731095395889,0.08416001,2971.2,2970.0,3.1388545]
[1731095396691,0.08416001,2971.2,2970.0,0.1388545]
[1731095396958,0.55,2971.1,2970.0,0.1388545]
[1731095397279,0.55,2970.9,2970.0,0.1388545]
[1731095397479,0.08416984,2970.8,2970.0,0.1388545]
[1731095397859,0.55,2971.3,2970.1,0.47356021]
[1731095400910,0.55,2971.3,2970.2,0.06732106]
[1731095401072,0.01,2972.4,2970.1,0.47356021]
[1731095401073,0.01,2972.3,2970.1,0.47356021]
[1731095401264,0.0941401,2972.3,2970.1,0.47356021]
[1731095401615,0.2186911,2972.3,2970.2,0.55]
[1731095401766,0.2186911,2972.3,2970.4,7.082]
[1731095401956,0.134551,2972.3,2970.7,6.532]
[1731095402181,0.09889723,2973.0,2971.1,0.7721]
[1731095402182,0.08411219,2973.0,2971.1,0.7721]
[1731095402403,0.134551,2972.9,2971.2,1.02356021]
[1731095402601,0.08410333,2972.8,2971.2,1.02356021]
[1731095403391,0.08410333,2972.8,2971.2,0.47356021]
[1731095404084,0.134551,2972.9,2971.4,0.55]
[1731095404426,0.10094241,2973.7,2971.6,0.55]
[1731095404427,0.0840945,2973.7,2971.6,0.55]
[1731095404733,0.134551,2973.4,2971.8,0.55]
[1731095404878,0.08408463,2974.3,2971.9,1.24196021]
[1731095405281,0.21863563,2974.3,2971.9,1.24196021]
[1731095405714,0.21863563,2974.3,2972.0,0.55]
[1731095407115,0.55,2974.2,2972.0,1.02356021]
[1731095407302,0.08407919,2974.1,2972.0,1.02356021]
[1731095407821,0.55,2974.0,2971.8,0.55]
[1731095408126,0.134551,2974.3,2971.8,0.55]
[1731095408127,0.55,2973.8,2971.9,0.47356021]
[1731095408368,0.55,2973.6,2971.0,3.0]
[1731095408628,0.01,2973.9,2970.9,0.01]
[1731095408629,0.55,2973.4,2971.5,0.47356021]
[1731095408780,0.55,2973.2,2971.5,0.47356021]
[1731095408981,0.55,2973.0,2971.5,0.47356021]
[1731095409181,0.55,2973.2,2970.9,1.78556021]
[1731095409182,0.55,2972.8,2970.9,1.78556021]
[1731095409390,0.55,2972.6,2970.9,0.47356021]
[1731095409631,0.08412625,2972.5,2970.9,0.47356021]
[1731095409812,0.55,2972.4,2970.9,0.47356021]
[1731095410025,0.08412752,2972.3,2970.9,0.47356021]
[1731095410225,0.08412752,2972.3,2970.4,0.47356021]
[1731095411725,0.55,2972.2,2970.4,0.47356021]
[1731095411883,0.55,2972.0,2970.4,0.47356021]
[1731095412078,0.55,2972.2,2970.4,0.47356021]
[1731095412079,0.08413815,2971.9,2970.4,0.47356021]
[1731095412723,0.08413813,2972.1,2970.4,0.47356021]
[1731095412896,0.55,2972.6,2970.4,0.47356021]
[1731095413239,0.09413301,2972.7,2970.4,0.47356021]
[1731095413240,0.55,2972.4,2970.4,0.47356021]
[1731095413461,0.55,2972.2,2970.4,0.47356021]
[1731095413635,0.08413298,2972.1,2970.4,0.47356021]
[1731095414122,0.08413298,2972.1,2970.5,0.06730655]
[1731095414321,0.08413298,2972.1,2970.4,3.47356021]
[1731095414676,0.08413298,2972.1,2970.5,0.44356021]
[1731095415316,0.08413298,2972.1,2970.6,0.06730648]
[1731095415756,0.55,2972.0,2970.5,0.44356021]
[1731095415963,0.55,2971.8,2970.0,0.1388545]
[1731095416162,0.10086088,2972.9,2970.0,0.1388545]
[1731095416163,0.55,2971.6,2970.0,0.1388545]
[1731095416461,0.0841509,2971.5,2970.0,0.1388545]
[1731095417018,0.0841509,2971.5,2970.1,0.06732072]
[1731095417250,0.09413753,2972.6,2970.2,3.532]
[1731095417442,0.09413753,2972.6,2970.3,6.532]
[1731095417677,1.43952853,2972.6,2970.3,6.532]
[1731095417881,1.42952853,2972.6,2970.4,0.06730645]
[1731095418067,0.08412436,2972.5,2971.0,3.532]
[1731095418381,0.01,2973.7,2971.3,3.532]
[1731095418382,0.08411214,2972.4,2971.3,3.532]
[1731095418689,0.09410298,2973.7,2971.5,3.0]
[1731095418895,1.344913,2972.9,2971.5,3.0]
[1731095419466,0.08410279,2972.8,2971.2,3.532]
[1731095419688,0.08410279,2972.8,2971.1,3.0]
[1731095419897,0.55,2972.7,2970.9,1.316]
[1731095420056,0.55,2972.5,2970.2,0.7559]